bitfinex/quotes_BTCUSD_20250512
["timestamp","ask_amount","ask_price","bid_price","bid_amount"]
[1747065378713,0.63539846,102620.0,102610.0,1.76117345]
[1747065378929,0.63539846,102620.0,102610.0,1.21934905]
[1747065379347,0.73125276,102620.0,102610.0,0.82400305]
[1747065379562,0.73125276,102620.0,102610.0,0.80270305]
[1747065380419,0.73125276,102620.0,102610.0,0.34]
[1747065382095,0.75305276,102620.0,102610.0,0.34]
[1747065382305,0.73125276,102620.0,102610.0,0.34]
[1747065385414,0.73105276,102620.0,102610.0,0.34]
[1747065385627,0.73105276,102620.0,102610.0,0.3621]
[1747065386436,0.51589276,102620.0,102610.0,1.03991582]
[1747065386636,0.52563697,102620.0,102610.0,1.68224445]
[1747065386863,0.74075697,102620.0,102610.0,1.68224445]
[1747065387065,0.74075697,102620.0,102610.0,1.47758605]
[1747065387303,0.73101257,102620.0,102610.0,1.44053805]
[1747065387685,0.73101257,102620.0,102610.0,2.06149636]
[1747065387937,0.73101257,102620.0,102610.0,1.85683805]
[1747065388378,0.42003827,102620.0,102610.0,2.06149636]
[1747065389093,0.42003827,102620.0,102610.0,2.05175082]
[1747065389310,0.20465831,102610.0,102570.0,0.29338975]
[1747065389535,0.41969831,102610.0,102600.0,0.46270305]
[1747065390678,0.22417066,102600.0,102590.0,0.62099685]
[1747065390930,0.21442465,102600.0,102590.0,0.55093]
[1747065391216,0.21446607,102580.0,102570.0,0.4223]
[1747065391491,0.64482607,102580.0,102570.0,0.006]
[1747065391771,0.74068037,102580.0,102570.0,0.346]
[1747065392049,0.74068037,102580.0,102570.0,0.34]
[1747065392330,0.20473802,102570.0,102560.0,0.90727502]
[1747065392616,0.30057236,102580.0,102570.0,0.00974934]
[1747065392867,0.44981858,102570.0,102560.0,1.92448597]
[1747065393128,0.64480736,102570.0,102560.0,2.12202602]
[1747065393407,0.64480736,102570.0,102560.0,2.34728411]
[1747065394222,0.64480736,102570.0,102560.0,1.37706902]
[1747065394223,0.63505812,102570.0,102560.0,1.37706902]
[1747065395123,0.63505812,102570.0,102560.0,1.38206902]
[1747065396567,0.63505812,102570.0,102560.0,1.40306902]
[1747065396768,0.63505812,102570.0,102560.0,1.19152721]
[1747065396980,0.63505812,102570.0,102560.0,0.99651941]
[1747065397199,0.63505812,102570.0,102560.0,1.2110275]
[1747065397410,0.63505812,102570.0,102560.0,1.2228775]
[1747065397637,0.63505812,102570.0,102560.0,1.69533065]
[1747065397844,0.63505812,102570.0,102560.0,1.70508065]
[1747065398921,0.63505812,102570.0,102560.0,0.76017445]
[1747065399139,0.62530878,102570.0,102560.0,0.54566597]
[1747065399352,0.62530878,102570.0,102560.0,0.71907377]
[1747065399536,0.62530878,102570.0,102560.0,0.73857445]
[1747065399749,0.62530878,102570.0,102560.0,1.15487445]
[1747065399985,0.62530878,102570.0,102560.0,1.16462464]
[1747065400535,0.62530878,102570.0,102560.0,0.91936597]
[1747065400756,0.62530878,102570.0,102560.0,0.79357197]
[1747065401835,0.62530878,102570.0,102560.0,0.98087197]
[1747065402064,0.62530878,102570.0,102560.0,0.97687197]
[1747065402272,0.62530878,102570.0,102560.0,0.97787197]
[1747065402520,0.62530878,102570.0,102560.0,0.97287197]
[1747065402747,0.62530878,102570.0,102560.0,0.97487197]
[1747065403396,0.63505812,102570.0,102560.0,1.19973006]
[1747065403567,0.63505812,102570.0,102560.0,1.22073006]
[1747065404038,0.63505812,102570.0,102560.0,1.01597197]
[1747065404446,0.63505812,102570.0,102560.0,0.99497197]
[1747065404842,0.63505812,102570.0,102560.0,1.19973016]
[1747065404843,0.21496,102570.0,102560.0,1.19973016]
[1747065405061,0.20469811,102590.0,102580.0,0.06269649]
[1747065405277,0.21444536,102590.0,102580.0,0.89168077]
[1747065405562,0.20469811,102590.0,102580.0,0.89168077]
[1747065405774,0.2241927,102590.0,102580.0,1.32747716]
[1747065405991,0.21444564,102590.0,102580.0,1.31772906]
[1747065406225,0.2241927,102590.0,102580.0,1.32747716]
[1747065406655,0.01949345,102590.0,102580.0,1.80312746]
[1747065406880,0.01949345,102590.0,102580.0,1.34342441]
[1747065407098,0.24368615,102590.0,102580.0,1.33367688]
[1747065407328,0.24368615,102590.0,102580.0,1.34342479]
[1747065407570,0.02434785,102590.0,102580.0,1.35317261]
[1747065407787,0.22904606,102590.0,102580.0,1.33367688]
[1747065408021,0.22904606,102590.0,102580.0,1.32392916]
[1747065408237,0.73965985,102590.0,102580.0,0.7623]
[1747065408475,0.31029985,102590.0,102580.0,0.7623]
[1747065408689,0.73965985,102590.0,102580.0,0.7623]
[1747065409137,0.76175985,102590.0,102580.0,0.7623]
[1747065409562,0.76175985,102590.0,102580.0,0.7593]
[1747065409753,0.77083878,102590.0,102580.0,0.7573]
[1747065410663,0.74873878,102590.0,102580.0,0.7573]
[1747065411439,0.79873878,102590.0,102580.0,0.7573]
[1747065411651,0.79873878,102590.0,102580.0,0.341]
[1747065412878,0.84973878,102590.0,102580.0,0.001]
[1747065413337,0.84973878,102590.0,102580.0,0.341]
[1747065414578,1.27085878,102590.0,102580.0,0.341]
[1747065415682,1.27185878,102590.0,102580.0,0.34]
[1747065415890,1.27285878,102590.0,102580.0,0.34]
[1747065416723,1.00717878,102590.0,102580.0,0.53496977]
[1747065416933,1.22157878,102590.0,102580.0,1.01716931]
[1747065417154,0.71435201,102590.0,102580.0,3.89912431]
[1747065417357,0.70460467,102590.0,102580.0,3.88937611]
[1747065417564,0.06107893,102590.0,102580.0,3.0034303]
[1747065417776,0.06107893,102590.0,102580.0,3.03267461]
[1747065418007,0.052,102590.0,102580.0,3.03267461]
[1747065418239,0.08124108,102590.0,102580.0,3.03267461]
[1747065418459,0.27419261,102590.0,102580.0,1.19587633]
[1747065418675,0.27419261,102590.0,102580.0,1.20562424]
[1747065418890,0.27419261,102590.0,102580.0,1.19787633]
[1747065419312,0.07924165,102590.0,102580.0,1.20762415]
[1747065419538,0.07924165,102590.0,102580.0,1.6703272]
[1747065419755,0.06012165,102590.0,102580.0,1.6703272]
[1747065419963,0.26481986,102590.0,102580.0,1.67032729]
[1747065420168,0.06986909,102590.0,102580.0,1.68007511]
[1747065420376,0.01949383,102590.0,102580.0,1.68007511]
[1747065420620,0.62401188,102600.0,102590.0,0.34]
[1747065420856,0.71986618,102600.0,102590.0,1.35828377]
[1747065421072,0.71986618,102600.0,102590.0,1.14318377]
[1747065421295,0.71986618,102600.0,102590.0,0.948233]
[1747065421506,0.72895892,102600.0,102590.0,1.15293121]
[1747065421722,0.72995892,102600.0,102590.0,0.948233]
[1747065421918,0.73095892,102600.0,102590.0,0.948233]
[1747065422168,0.50746618,102600.0,102590.0,1.1529313]
[1747065422413,0.65509115,102600.0,102590.0,1.703176]
[1747065422635,0.65509115,102600.0,102590.0,1.68368179]
[1747065422888,0.44041115,102600.0,102590.0,1.69342913]
[1747065423364,0.44041115,102600.0,102590.0,1.70317619]
[1747065423572,0.44041115,102600.0,102590.0,1.24047333]
[1747065423993,0.44041115,102600.0,102590.0,1.25022048]
[1747065424210,0.42091846,102600.0,102590.0,0.640553]
[1747065424421,0.42091846,102600.0,102590.0,0.34]
[1747065424652,0.51677276,102600.0,102590.0,0.34]
[1747065425080,0.02082791,102600.0,102590.0,1.85684641]
[1747065425301,0.2252419,102600.0,102590.0,1.89519328]
[1747065425598,0.42856384,102610.0,102600.0,0.03904658]
[1747065425716,0.4188184,102610.0,102600.0,0.03904658]
[1747065425986,0.4188184,102610.0,102600.0,1.66022835]
[1747065426223,0.40250875,102620.0,102610.0,0.01949098]
[1747065426450,0.64322286,102620.0,102610.0,3.1875258]
[1747065426670,0.65296697,102620.0,102610.0,2.87449899]
[1747065426926,0.65296697,102620.0,102610.0,2.88424443]
[1747065427180,0.64322286,102620.0,102610.0,2.66009505]
[1747065427390,0.64322286,102620.0,102610.0,1.219981]
[1747065427854,0.64322286,102620.0,102610.0,1.331656]
[1747065428082,0.64322286,102620.0,102610.0,1.51639377]
[1747065428270,0.64322286,102620.0,102610.0,1.321481]
[1747065428779,0.22442411,102620.0,102610.0,2.76399682]
[1747065429008,0.04872132,102620.0,102610.0,2.79323277]
[1747065429261,0.22412716,102620.0,102610.0,2.78348761]
[1747065429699,0.20463846,102620.0,102610.0,0.94887]
[1747065430169,0.20463846,102620.0,102610.0,0.7563]
[1747065430654,0.20463846,102620.0,102610.0,1.085603]
[1747065432501,0.20463846,102620.0,102610.0,1.09930252]
[1747065432724,0.20463846,102620.0,102610.0,0.68300252]
[1747065432940,0.20463846,102620.0,102610.0,0.87791529]
[1747065433198,0.20463846,102620.0,102610.0,1.42925476]
[1747065433409,0.41855846,102620.0,102610.0,1.40580999]
[1747065434638,0.41855846,102620.0,102610.0,1.19140605]
[1747065434841,0.41855846,102620.0,102610.0,0.53546]
[1747065435046,0.41855846,102620.0,102610.0,0.464743]
[1747065435249,0.41855846,102620.0,102610.0,0.453198]
[1747065435548,0.20465821,102610.0,102600.0,0.001]
[1747065435749,0.32971251,102610.0,102600.0,0.001]
[1747065435996,0.35881251,102610.0,102600.0,0.001]
[1747065436692,0.35881251,102610.0,102600.0,0.002]
[1747065437362,0.35881251,102610.0,102600.0,0.001]
[1747065437575,0.20467816,102600.0,102590.0,0.43107871]
[1747065437788,0.75811246,102600.0,102590.0,0.43107871]
[1747065437997,0.76717175,102600.0,102590.0,0.43107871]
[1747065438208,0.79807175,102600.0,102590.0,0.01477871]
[1747065438468,0.21446607,102580.0,102570.0,0.4163]
[1747065438649,0.2145079,102560.0,102550.0,0.4163]
[1747065438867,0.6421079,102560.0,102550.0,0.4163]
[1747065439074,0.6421079,102560.0,102550.0,1.158471]
[1747065439282,0.6421079,102560.0,102550.0,1.17217769]
[1747065439499,0.6421079,102560.0,102550.0,1.29488074]
[1747065439735,0.6421079,102560.0,102550.0,1.50940975]
[1747065439977,0.21450437,102570.0,102560.0,0.21450809]
[1747065440182,0.64210437,102570.0,102560.0,0.676111]
[1747065440387,0.64210437,102570.0,102560.0,0.47019]
[1747065440586,0.73795867,102570.0,102560.0,0.34]
[1747065441253,0.73795867,102570.0,102560.0,0.342]
[1747065441669,0.73795867,102570.0,102560.0,0.344]
[1747065442388,0.76725867,102570.0,102560.0,0.004]
[1747065442836,1.97950172,102570.0,102560.0,0.004]
[1747065443063,2.29404257,102570.0,102560.0,0.004]
[1747065443266,1.99404257,102570.0,102560.0,0.004]
[1747065443725,0.51929884,102560.0,102550.0,0.02829232]
[1747065443910,0.20481799,102530.0,102520.0,0.6976405]
[1747065444107,0.41849799,102530.0,102520.0,0.6976405]
[1747065444355,0.41849799,102530.0,102520.0,1.94948549]
[1747065444570,0.63235793,102540.0,102530.0,0.34]
[1747065444740,0.63235793,102540.0,102530.0,1.23223705]
[1747065445304,0.63235793,102540.0,102530.0,0.80270305]
[1747065445544,0.72821223,102540.0,102530.0,0.34]
[1747065445762,0.2048179,102530.0,102520.0,0.01395899]
[1747065445980,0.4184979,102530.0,102520.0,0.01395899]
[1747065446195,0.20485786,102510.0,102500.0,0.49350305]
[1747065446424,0.20485786,102510.0,102500.0,1.32015004]
[1747065446641,0.20485786,102510.0,102500.0,1.93792509]
[1747065446865,0.19510291,102510.0,102500.0,1.42488128]
[1747065447087,0.19510291,102510.0,102500.0,0.89638328]
[1747065447516,0.40900388,102520.0,102500.0,0.89638328]
[1747065447517,0.40900388,102520.0,102510.0,0.34]
[1747065447748,0.71849818,102520.0,102510.0,0.80270305]
[1747065447975,0.71849818,102520.0,102510.0,0.34]
[1747065448202,0.19510291,102510.0,102500.0,0.03569746]
[1747065448449,0.29095721,102510.0,102500.0,0.37569746]
[1747065448709,0.29095721,102510.0,102500.0,0.37269746]
[1747065449160,0.01950962,102510.0,102500.0,0.59308655]
[1747065449388,0.22436672,102510.0,102500.0,3.40681417]
[1747065449608,0.22436739,102510.0,102500.0,1.30244417]
[1747065449824,0.42825282,102510.0,102500.0,1.30244436]
[1747065450058,0.42825272,102510.0,102500.0,1.18600436]
[1747065450284,0.43800786,102510.0,102500.0,1.14594855]
[1747065450496,0.4282531,102510.0,102500.0,1.14594855]
[1747065450709,0.4282531,102510.0,102500.0,1.16546045]
[1747065450956,0.4282531,102510.0,102500.0,1.17521626]
[1747065451188,0.64223197,102520.0,102510.0,0.20485786]
[1747065451446,0.72833237,102520.0,102510.0,0.95381205]
[1747065451892,0.72833237,102520.0,102510.0,1.1586701]
[1747065452075,0.72833237,102520.0,102510.0,0.96356719]
[1747065452313,0.72833237,102520.0,102510.0,0.95381205]
[1747065452736,0.72833237,102520.0,102510.0,0.80270305]
[1747065452943,0.72833237,102520.0,102510.0,1.61335596]
[1747065453150,0.72833237,102520.0,102510.0,1.41825305]
[1747065453354,0.20483807,102520.0,102510.0,1.49538196]
[1747065453569,0.20483807,102520.0,102510.0,0.96288505]
[1747065453818,0.20483807,102520.0,102510.0,1.15798796]
[1747065454041,0.63243807,102520.0,102510.0,0.96288505]
[1747065454473,0.63243807,102520.0,102510.0,0.80270305]
[1747065454683,0.63243807,102520.0,102510.0,0.90482805]
[1747065454863,0.63243807,102520.0,102510.0,0.80270305]
[1747065455552,0.75695237,102520.0,102510.0,0.34]
[1747065455772,0.20485786,102510.0,102500.0,0.02869746]
[1747065455998,0.20485786,102510.0,102500.0,0.36869746]
[1747065456239,0.20485786,102510.0,102500.0,0.80270305]
[1747065456460,0.01950943,102510.0,102500.0,1.04280945]
[1747065456678,0.03901952,102510.0,102500.0,3.91359788]
[1747065456891,0.22436729,102510.0,102500.0,3.90384245]
[1747065457106,0.21461272,102510.0,102500.0,3.88633074]
[1747065457327,0.21461272,102510.0,102500.0,3.52690345]
[1747065457543,0.42817253,102510.0,102500.0,3.53665869]
[1747065457766,0.42817253,102510.0,102500.0,3.5464144]
[1747065457767,0.44768253,102510.0,102500.0,3.5464144]
[1747065457993,0.19770457,102510.0,102500.0,2.71615831]
[1747065458213,0.39280748,102510.0,102500.0,2.70640288]
[1747065458419,0.39280748,102510.0,102500.0,2.39365988]
[1747065458627,0.39280748,102510.0,102500.0,2.34294088]
[1747065460247,0.38305272,102510.0,102500.0,1.92970479]
[1747065460461,0.38305272,102510.0,102500.0,0.83217579]
[1747065460661,0.38305272,102510.0,102500.0,0.49217579]
[1747065460868,0.50900702,102510.0,102500.0,0.04380361]
[1747065461516,0.50900702,102510.0,102500.0,0.38380361]
[1747065461722,0.47890702,102510.0,102500.0,0.84650666]
[1747065464991,0.47890702,102510.0,102500.0,0.38380361]
[1747065465205,0.47890702,102510.0,102500.0,0.84650666]
[1747065466691,0.47890702,102510.0,102500.0,1.04162861]
[1747065466894,0.61626485,102530.0,102510.0,0.01950942]
[1747065467108,0.92551915,102530.0,102520.0,0.80270305]
[1747065468126,0.029264,102510.0,102500.0,0.65633632]
[1747065468257,0.01950905,102510.0,102500.0,0.65433632]
[1747065468452,0.00975438,102510.0,102500.0,0.65433632]
[1747065468718,0.00975467,102510.0,102500.0,0.65433632]
[1747065469348,0.01950933,102510.0,102500.0,4.03180994]
[1747065469576,0.01950933,102510.0,102500.0,4.04156537]
[1747065469808,0.01950905,102510.0,102500.0,4.04156537]
[1747065470058,0.92551915,102530.0,102510.0,0.56436719]
[1747065470310,0.0195079,102520.0,102510.0,0.62186729]
[1747065470532,0.44741959,102520.0,102510.0,2.69616439]
[1747065470754,0.42791216,102520.0,102510.0,1.89245172]
[1747065470967,0.42791216,102520.0,102510.0,1.71676972]
[1747065471438,0.41815807,102520.0,102510.0,2.06347301]
[1747065471654,0.41815807,102520.0,102510.0,2.07322787]
[1747065472349,0.40840388,102520.0,102510.0,1.82991505]
[1747065472554,0.40840388,102520.0,102510.0,1.37576696]
[1747065472761,0.40840388,102520.0,102510.0,1.16062905]
[1747065473000,0.40840388,102520.0,102510.0,1.02739505]
[1747065474253,0.40840388,102520.0,102510.0,0.91862105]
[1747065474365,0.40840388,102520.0,102510.0,0.80270305]
[1747065474754,0.40840388,102520.0,102510.0,1.21900305]
[1747065475027,0.50425818,102520.0,102510.0,1.21900305]
[1747065475791,0.50425818,102520.0,102510.0,1.32054605]
[1747065475995,0.50417818,102520.0,102510.0,1.32054605]
[1747065476258,0.19508388,102520.0,102510.0,1.32054605]
[1747065476672,0.40828388,102520.0,102510.0,1.32054605]
[1747065476911,0.19508388,102520.0,102510.0,1.32054605]
[1747065477120,0.19508388,102520.0,102510.0,0.857843]
[1747065477325,0.40828388,102520.0,102510.0,1.33180705]
[1747065477522,0.50413818,102520.0,102510.0,1.21900305]
[1747065478437,0.50413818,102520.0,102510.0,1.32973905]
[1747065478663,0.50413818,102520.0,102510.0,1.34444794]
[1747065478873,0.29093818,102520.0,102510.0,1.34444794]
[1747065479110,0.40828388,102520.0,102510.0,1.34444794]
[1747065479494,0.40828388,102520.0,102510.0,1.53955085]
[1747065479699,0.40828388,102520.0,102510.0,1.54930599]
[1747065480801,0.40824388,102520.0,102510.0,0.81741194]
[1747065481242,0.86299818,102520.0,102500.0,0.0252602]
[1747065481473,0.57301216,102510.0,102500.0,0.0252602]
[1747065481697,0.20489783,102490.0,102480.0,0.87900305]
[1747065481920,0.41805783,102490.0,102480.0,0.46270305]
[1747065482145,0.41805783,102490.0,102480.0,0.48759106]
[1747065482369,0.20489783,102490.0,102480.0,0.48759106]
[1747065482836,0.32955213,102490.0,102480.0,0.02488801]
[1747065483041,0.32955213,102490.0,102480.0,0.03982661]
[1747065483284,0.20491784,102480.0,102470.0,0.7563]
[1747065483518,0.20491784,102480.0,102470.0,1.35861505]
[1747065483739,0.02927209,102480.0,102470.0,1.61246982]
[1747065483954,0.02927209,102480.0,102470.0,1.64066982]
[1747065484172,0.30075213,102490.0,102480.0,0.20491784]
[1747065484415,0.2146544,102490.0,102480.0,1.73158489]
[1747065484628,0.2146544,102490.0,102480.0,1.44697411]
[1747065485631,0.20489783,102490.0,102480.0,1.4469743]
[1747065485841,0.20489783,102490.0,102480.0,1.4567322]
[1747065486526,0.19512195,102500.0,102480.0,1.87303201]
[1747065486775,0.01951133,102500.0,102490.0,1.58713154]
[1747065486995,0.03902276,102500.0,102490.0,1.55576516]
[1747065487204,0.03902342,102500.0,102490.0,1.54600888]
[1747065487431,0.23414575,102500.0,102490.0,1.54600983]
[1747065487643,0.21463404,102500.0,102490.0,0.90481905]
[1747065487866,0.21463404,102500.0,102490.0,0.80470305]
[1747065488080,0.21463404,102500.0,102490.0,0.80670305]
[1747065488957,0.21463404,102500.0,102490.0,2.96906098]
[1747065489177,0.00975571,102500.0,102490.0,2.9983304]
[1747065489429,0.03902304,102500.0,102490.0,3.01887421]
[1747065489638,0.23414565,102500.0,102490.0,2.9472394]
[1747065489866,0.21463404,102500.0,102490.0,0.92297305]
[1747065490086,0.21463404,102500.0,102490.0,1.43676364]
[1747065490303,0.21463404,102500.0,102490.0,1.4465203]
[1747065491337,0.20487804,102500.0,102490.0,1.22210905]
[1747065491538,0.20487804,102500.0,102490.0,0.80670305]
[1747065492009,0.30073234,102500.0,102490.0,0.80670305]
[1747065492216,0.33163234,102500.0,102490.0,0.80670305]
[1747065492423,0.33163234,102500.0,102490.0,0.344]
[1747065494567,0.00975581,102500.0,102490.0,1.15549764]
[1747065494801,0.01950714,102520.0,102510.0,0.56436719]
[1747065495009,0.22569341,102540.0,102520.0,0.20483759]
[1747065495221,0.32990824,102540.0,102530.0,0.67727409]
[1747065495431,0.32990824,102540.0,102530.0,1.07865804]
[1747065495633,0.31040452,102540.0,102530.0,0.47245629]
[1747065495877,0.29090013,102540.0,102530.0,0.46270305]
[1747065496090,0.29090013,102540.0,102530.0,0.58027005]
[1747065496674,0.29090013,102540.0,102530.0,0.57089305]
[1747065496884,0.29090013,102540.0,102530.0,0.7669579]
[1747065497143,0.29090013,102540.0,102530.0,0.57189305]
[1747065497786,0.19514818,102560.0,102540.0,0.56430136]
[1747065497992,0.22427921,102550.0,102540.0,0.55454974]
[1747065498205,0.02925288,102550.0,102540.0,2.0744837]
[1747065498414,0.03900326,102550.0,102540.0,2.06473208]
[1747065498641,0.20475799,102560.0,102550.0,0.21452901]
[1747065498863,0.20475799,102560.0,102550.0,2.37215621]
[1747065498864,0.22425829,102560.0,102550.0,2.37215621]
[1747065499078,0.22425829,102560.0,102550.0,2.34696225]
[1747065499290,0.21550838,102560.0,102550.0,1.15557805]
[1747065499498,0.21450838,102560.0,102550.0,1.16532939]
[1747065499731,0.21450838,102560.0,102550.0,1.15557805]
[1747065499963,0.01174991,102560.0,102550.0,1.38960907]
[1747065500165,0.03124972,102560.0,102550.0,1.83600907]
[1747065500425,0.20475742,102560.0,102550.0,1.83600907]
[1747065500651,0.19506755,102570.0,102560.0,0.34]
[1747065500864,0.29092185,102570.0,102560.0,0.80270305]
[1747065501971,0.20475799,102560.0,102550.0,1.21900305]
[1747065502207,0.30061229,102560.0,102550.0,0.7563]
[1747065502614,0.30061229,102560.0,102550.0,1.21900305]
[1747065502818,0.33121229,102560.0,102550.0,0.7563]
[1747065504288,0.30061229,102560.0,102550.0,0.7563]
[1747065504413,0.30061229,102560.0,102550.0,1.21900305]
[1747065504613,0.30061229,102560.0,102550.0,0.80270305]
[1747065505710,0.30061229,102560.0,102550.0,0.80270305]
[1747065506135,0.21450809,102560.0,102550.0,0.80270305]
[1747065506348,0.30061229,102560.0,102550.0,0.80270305]
[1747065507615,0.30061229,102560.0,102550.0,0.82772868]
[1747065508179,0.30061229,102560.0,102550.0,0.36502563]
[1747065508395,0.30061229,102560.0,102550.0,0.82772868]
[1747065509039,0.30061229,102560.0,102550.0,0.84207613]
[1747065509846,0.30061229,102560.0,102550.0,0.37937308]
[1747065510065,0.35871229,102560.0,102550.0,0.37937308]
[1747065510272,0.65871229,102560.0,102550.0,0.02502563]
[1747065510474,0.21454974,102540.0,102530.0,0.46270305]
[1747065510691,0.2048179,102530.0,102520.0,0.87900305]
[1747065510888,0.2048179,102530.0,102520.0,0.69575048]
[1747065511113,0.2048179,102530.0,102520.0,0.66933248]
[1747065511327,0.3006722,102530.0,102520.0,0.02478443]
[1747065511542,0.21461253,102510.0,102500.0,0.46270305]
[1747065511753,0.21461253,102510.0,102500.0,0.80270305]
[1747065511969,0.20487785,102500.0,102490.0,0.46270305]
[1747065512465,0.20487785,102500.0,102490.0,0.80270305]
[1747065512670,0.20487785,102500.0,102490.0,0.83939099]
[1747065512876,0.20487785,102500.0,102490.0,0.49939099]
[1747065513083,0.20487785,102500.0,102490.0,0.83939099]
[1747065513728,0.41775785,102500.0,102490.0,0.50139099]
[1747065514130,0.51361215,102500.0,102490.0,0.37868794]
[1747065514348,0.51361215,102500.0,102490.0,0.84139099]
[1747065514590,0.51361215,102500.0,102490.0,0.84239099]
[1747065515429,0.72629215,102500.0,102490.0,0.37968794]
[1747065516438,0.75709215,102500.0,102490.0,0.37968794]
[1747065516675,0.78669215,102500.0,102490.0,0.03968794]
[1747065518258,0.75709215,102500.0,102490.0,0.03968794]
[1747065518833,0.72629215,102500.0,102490.0,0.03968794]
[1747065519058,0.30073215,102500.0,102490.0,0.84239099]
[1747065519333,0.72629215,102500.0,102490.0,1.64329399]
[1747065519544,0.72629215,102500.0,102490.0,0.84239099]
[1747065519771,0.72622291,102500.0,102490.0,0.84239099]
[1747065520384,0.72622291,102500.0,102490.0,0.37968794]
[1747065522130,0.72622291,102500.0,102490.0,0.03968794]
[1747065522349,1.08412291,102500.0,102490.0,0.02535219]
[1747065522588,1.09866376,102500.0,102490.0,0.02535219]
[1747065523461,1.09866376,102500.0,102490.0,0.02235219]
[1747065523676,1.08412291,102500.0,102490.0,0.02235219]
[1747065523891,0.20491784,102480.0,102470.0,0.80270305]
[1747065524103,0.41787784,102480.0,102470.0,0.34]
[1747065524306,0.41787784,102480.0,102470.0,0.80270305]
[1747065524766,0.42763555,102480.0,102470.0,1.0198838]
[1747065524973,0.42763555,102480.0,102470.0,2.0459728]
[1747065525182,0.64023555,102480.0,102470.0,2.06649013]
[1747065525392,0.64023574,102480.0,102470.0,1.68551973]
[1747065525596,0.64023574,102480.0,102470.0,1.99665973]
[1747065525804,0.64023574,102480.0,102470.0,2.22111517]
[1747065526008,0.45483371,102480.0,102470.0,2.22111517]
[1747065526216,0.45483371,102480.0,102470.0,2.24063183]
[1747065526870,0.64999374,102480.0,102470.0,2.24063183]
[1747065527092,0.02927208,102480.0,102470.0,2.24063183]
[1747065527301,0.25162989,102480.0,102470.0,2.2549962]
[1747065527508,0.00975723,102480.0,102470.0,2.2549962]
[1747065527767,0.43697163,102490.0,102480.0,0.59246003]
[1747065527964,0.43697163,102490.0,102480.0,1.06492108]
[1747065528209,0.42721497,102490.0,102480.0,0.83120305]
[1747065528487,0.42721497,102490.0,102480.0,0.80270305]
[1747065528678,0.63981497,102490.0,102480.0,0.80270305]
[1747065529487,0.63981497,102490.0,102480.0,0.34]
[1747065529721,0.63981497,102490.0,102480.0,0.81246105]
[1747065530039,0.63981497,102490.0,102480.0,1.04687879]
[1747065530250,0.63005802,102490.0,102480.0,1.04687898]
[1747065530515,0.63005802,102490.0,102480.0,0.83220305]
[1747065530722,0.62030098,102490.0,102480.0,0.80270305]
[1747065531148,0.62030098,102490.0,102480.0,1.03712098]
[1747065531297,0.62030098,102490.0,102480.0,1.03712108]
[1747065531504,0.24183037,102490.0,102480.0,1.06639431]
[1747065531731,0.63977497,102490.0,102480.0,2.20344079]
[1747065532072,0.63977497,102490.0,102480.0,2.07962779]
[1747065532485,0.63977497,102490.0,102480.0,1.63864598]
[1747065532917,0.63001802,102490.0,102480.0,1.36607005]
[1747065533133,0.62026098,102490.0,102480.0,1.21900305]
[1747065533953,0.63001802,102490.0,102480.0,2.06742498]
[1747065534156,0.63001802,102490.0,102480.0,2.13468279]
[1747065534377,0.63001802,102490.0,102480.0,2.12492498]
[1747065534592,0.62026098,102490.0,102480.0,2.12492498]
[1747065535046,0.19512195,102500.0,102480.0,2.12492498]
[1747065535047,0.19512195,102500.0,102490.0,0.53514098]
[1747065535257,0.50349625,102500.0,102490.0,0.80270305]
[1747065535477,0.71609625,102500.0,102490.0,1.00760098]
[1747065535670,0.71609625,102500.0,102490.0,0.80270305]
[1747065536369,0.71609625,102500.0,102490.0,0.81246009]
[1747065536592,0.71709625,102500.0,102490.0,0.80270305]
[1747065536822,0.01075543,102500.0,102490.0,1.02711402]
[1747065537049,0.44458933,102510.0,102500.0,0.22438909]
[1747065537263,0.44458933,102510.0,102500.0,2.66973514]
[1747065537514,0.43483428,102510.0,102500.0,2.66973514]
[1747065537718,0.6456264,102520.0,102510.0,0.57455805]
[1747065537963,1.06091269,102520.0,102510.0,1.0372611]
[1747065538180,1.05115869,102520.0,102510.0,1.0372611]
[1747065538399,1.05115869,102520.0,102510.0,0.84215819]
[1747065538633,1.05115869,102520.0,102510.0,1.04701605]
[1747065538902,1.05115869,102520.0,102510.0,2.094413]
[1747065539145,1.05115869,102520.0,102510.0,1.42768305]
[1747065539370,1.05115869,102520.0,102510.0,0.80570305]
[1747065542269,1.05115869,102520.0,102510.0,0.343]
[1747065542531,1.14701299,102520.0,102510.0,0.80570305]
[1747065542807,1.14701299,102520.0,102510.0,0.343]
[1747065544839,1.14701299,102520.0,102510.0,0.80570305]
[1747065545466,1.14701299,102520.0,102510.0,0.343]
[1747065545723,1.14701299,102520.0,102510.0,0.80570305]
[1747065545933,1.14701299,102520.0,102510.0,0.343]
[1747065546154,1.14701299,102520.0,102510.0,0.80570305]
[1747065546600,1.14701299,102520.0,102510.0,0.75745087]
[1747065547724,1.17591299,102520.0,102510.0,0.003]
[1747065547946,1.20501299,102520.0,102510.0,0.003]
[1747065548402,1.17591299,102520.0,102510.0,0.003]
[1747065548631,1.14701299,102520.0,102510.0,0.343]
[1747065549300,1.17621299,102520.0,102510.0,0.343]
[1747065549592,1.20401299,102520.0,102510.0,0.343]
[1747065550017,1.20401299,102520.0,102510.0,0.003]
[1747065550249,1.50401299,102520.0,102510.0,0.003]
[1747065551157,0.23295786,102510.0,102500.0,0.34]
[1747065551368,0.35841216,102510.0,102500.0,0.34]
[1747065552613,0.35841216,102510.0,102500.0,0.001]
[1747065554730,0.65841216,102510.0,102500.0,0.001]
[1747065559181,0.62881216,102510.0,102500.0,0.001]
[1747065559410,0.72543216,102510.0,102500.0,0.341]
[1747065560576,0.72543216,102510.0,102500.0,0.001]
[1747065560778,0.72543216,102510.0,102500.0,0.341]
[1747065561691,0.51307216,102510.0,102500.0,0.341]
[1747065561877,0.72543216,102510.0,102500.0,0.341]
[1747065565004,0.41721786,102510.0,102500.0,1.27580305]
[1747065565219,0.62957786,102510.0,102500.0,1.27580305]
[1747065566999,0.20485786,102510.0,102500.0,1.27580305]
[1747065567223,0.41721786,102510.0,102500.0,1.27580305]
[1747065567435,0.62957786,102510.0,102500.0,1.27580305]
[1747065568067,0.62957786,102510.0,102500.0,2.01887805]
[1747065568285,0.21461272,102510.0,102500.0,2.214]
[1747065568527,0.21461272,102510.0,102500.0,2.25302323]
[1747065568528,0.45398438,102510.0,102500.0,2.25302323]
[1747065568737,0.46373943,102510.0,102500.0,2.25302323]
[1747065568949,0.66859748,102510.0,102500.0,2.25302323]
[1747065569357,0.64908729,102510.0,102500.0,2.2432678]
[1747065569617,0.45398438,102510.0,102500.0,2.26277885]
[1747065569850,0.65884243,102510.0,102500.0,2.25302342]
[1747065570078,0.64908786,102510.0,102500.0,2.24326799]
[1747065570533,0.64908786,102510.0,102500.0,2.2530238]
[1747065570747,0.64908786,102510.0,102500.0,2.26277932]
[1747065570969,0.64908786,102510.0,102500.0,2.2530238]